[Event "GER-ch Blitz 2019"]
[Site "Magdeburg"]
[Date "2019.05.25"]
[Round "6.6"]
[White "Buhmann, Rainer"]
[Black "Schmaltz, Roland"]
[Result "1-0"]
[ECO "E73"]
[WhiteElo "2573"]
[BlackElo "2461"]
[Annotator "ChessBase"]
[PlyCount "117"]
[EventDate "2019.05.25"]
[EventType "tourn"]
[EventCountry "GER"]
[Tiebreak "Number of wins+Number of black wins"]
[SourceTitle "playchess.com"]
[Source "ChessBase"]
[SourceQuality "1"]
[TimeControl "180+2"]

1. d4 {[%emt 0:00:00]} Nf6 {[%emt 0:00:00]} 2. c4 {[%emt 0:00:01]} g6 {[%emt 0:
00:00]} 3. Nc3 {[%emt 0:00:01]} Bg7 {[%emt 0:00:00]} 4. e4 {[%emt 0:00:01]} d6
{[%emt 0:00:00]} 5. Be2 {[%emt 0:00:01]} O-O {[%emt 0:00:02]} 6. Be3 {[%emt 0:
00:02]} c5 {[%emt 0:00:01]} 7. d5 {[%emt 0:00:05]} e6 {[%emt 0:00:04]} 8. Nf3 {
[%emt 0:00:01]} exd5 {[%emt 0:00:01]} 9. cxd5 {[%emt 0:00:02]} Bg4 {[%emt 0:00:
03]} 10. Nd2 {[%emt 0:00:02]} Bxe2 {[%emt 0:00:01]} 11. Qxe2 {[%emt 0:00:01]}
Re8 {[%emt 0:00:04]} 12. f3 {[%emt 0:00:02]} Na6 {[%emt 0:00:06]} 13. O-O {
[%emt 0:00:10]} Nc7 {[%emt 0:00:02]} 14. Kh1 {[%emt 0:00:30]} b5 {[%emt 0:00:
26]} 15. Nxb5 {[%emt 0:00:10]} Nxb5 {[%emt 0:00:11]} 16. Qxb5 {[%emt 0:00:02]}
Nxd5 {[%emt 0:00:15]} 17. exd5 {[%emt 0:00:02]} Rxe3 {[%emt 0:00:00]} 18. Nc4 {
[%emt 0:00:03]} Rd3 {[%emt 0:00:23]} 19. Rad1 {[%emt 0:00:07]} Rxd1 {[%emt 0:
00:10]} 20. Rxd1 {[%emt 0:00:01]} Bf8 {[%emt 0:00:03]} 21. b3 {[%emt 0:00:14]}
h5 {[%emt 0:00:04]} 22. Kg1 {[%emt 0:00:32]} Qf6 {[%emt 0:00:25]} 23. Qa5 {
[%emt 0:00:23]} Re8 {[%emt 0:00:14]} 24. Qd2 {[%emt 0:00:03]} Qf5 {[%emt 0:00:
21]} 25. Kf1 {[%emt 0:00:11]} Kh7 {[%emt 0:00:14]} 26. Qd3 {[%emt 0:00:08]} Qf4
{[%emt 0:00:04]} 27. g3 {[%emt 0:00:01]} Qf6 {[%emt 0:00:01]} 28. h4 {[%emt 0:
00:12]} Bg7 {[%emt 0:00:03]} 29. Kg2 {[%emt 0:00:09]} Qd8 {[%emt 0:00:02]} 30.
Rd2 {[%emt 0:00:03]} Bd4 {[%emt 0:00:02]} 31. Re2 {[%emt 0:00:01]} Re7 {
[%emt 0:00:07]} 32. Rxe7 {[%emt 0:00:02]} Qxe7 33. Qe4 {[%emt 0:00:01]} Qd8 {
[%emt 0:00:12]} 34. Qf4 {[%emt 0:00:02]} Qe8 {[%emt 0:00:04]} 35. Kf1 {[%emt 0:
00:09]} Be5 {[%emt 0:00:04]} 36. Qe4 {[%emt 0:00:09]} f5 {[%emt 0:00:02]} 37.
Qe2 {[%emt 0:00:02]} Qe7 {[%emt 0:00:07]} 38. f4 Bf6 39. Qxe7+ {[%emt 0:00:04]}
Bxe7 {[%emt 0:00:01]} 40. Na5 {[%emt 0:00:01]} Bd8 {[%emt 0:00:03]} 41. Nc6 {
[%emt 0:00:02]} Bb6 {[%emt 0:00:01]} 42. Ke2 {[%emt 0:00:02]} Kg7 {[%emt 0:00:
00]} 43. Kd3 {[%emt 0:00:00]} Kf7 {[%emt 0:00:01]} 44. Kc4 {[%emt 0:00:01]} a6
{[%emt 0:00:00]} 45. Nb8 {[%emt 0:00:02]} Ba5 {[%emt 0:00:05]} 46. Nxa6 {
[%emt 0:00:04]} Be1 {[%emt 0:00:01]} 47. a4 {[%emt 0:00:02]} Bxg3 {[%emt 0:00:
02]} 48. a5 {[%emt 0:00:00]} Be1 {[%emt 0:00:05]} 49. b4 {[%emt 0:00:01]} g5 {
[%emt 0:00:03]} 50. fxg5 {[%emt 0:00:06]} f4 {[%emt 0:00:00]} 51. bxc5 {
[%emt 0:00:02]} f3 {[%emt 0:00:00]} 52. Kd3 {[%emt 0:00:02]} Bxa5 {[%emt 0:00:
04]} 53. c6 {[%emt 0:00:01]} Ke8 {[%emt 0:00:02]} 54. Ke3 {[%emt 0:00:05]} Be1
{[%emt 0:00:02]} 55. Kxf3 {[%emt 0:00:01]} Bxh4 {[%emt 0:00:01]} 56. g6 {
[%emt 0:00:01]} Bf6 {[%emt 0:00:01]} 57. Nc7+ {[%emt 0:00:02]} Kd8 {[%emt 0:00:
01]} 58. Ne6+ Kc8 59. g7 {[%emt 0:00:02]} 1-0

[Event "GER-ch Blitz 2019"]
[Site "Magdeburg"]
[Date "2019.05.25"]
[Round "6.7"]
[White "Stein, Robert"]
[Black "Baskin, Robert"]
[Result "1-0"]
[ECO "D71"]
[WhiteElo "2318"]
[BlackElo "2398"]
[Annotator "NA"]
[PlyCount "137"]
[EventDate "2019.05.25"]
[EventType "tourn"]
[EventCountry "GER"]
[Tiebreak "Number of wins+Number of black wins"]
[SourceTitle "playchess.com"]
[Source "ChessBase"]
[SourceQuality "1"]
[TimeControl "180+2"]

1. d4 {[%emt 0:00:00]} Nf6 2. c4 g6 {[%emt 0:00:00]} 3. g3 {[%emt 0:00:00]} Bg7
{[%emt 0:00:06]} 4. Bg2 {[%emt 0:00:01]} O-O {[%emt 0:00:02]} 5. Nc3 {[%emt 0:
00:01]} d6 {[%emt 0:00:02]} 6. Nf3 {[%emt 0:00:01]} c6 {[%emt 0:00:01]} 7. O-O
{[%emt 0:00:02]} Qb6 {[%emt 0:00:01]} 8. b3 {[%emt 0:00:20]} e5 {[%emt 0:00:21]
} 9. Ba3 {[%emt 0:00:56]} Qa5 {[%emt 0:00:16]} 10. Bb2 {[%emt 0:00:09]} Nbd7 {
[%emt 0:00:04]} 11. Qc2 {[%emt 0:00:04]} Re8 {[%emt 0:00:05]} 12. e4 {[%emt 0:
00:18]} exd4 {[%emt 0:00:12]} 13. Nxd4 {[%emt 0:00:01]} Nc5 {[%emt 0:00:01]}
14. Rfe1 {[%emt 0:00:06]} Bd7 {[%emt 0:00:04]} 15. Rad1 {[%emt 0:00:18]} Re7 {
[%emt 0:00:03]} 16. a3 {[%emt 0:00:04]} Qc7 {[%emt 0:00:01]} 17. b4 {[%emt 0:
00:00]} Ne6 {[%emt 0:00:01]} 18. Nb3 {[%emt 0:00:10]} h5 {[%emt 0:00:10]} 19.
Qd2 {[%emt 0:00:10]} Ne8 {[%emt 0:00:24]} 20. Rc1 {[%emt 0:00:00]} Qd8 {
[%emt 0:00:02]} 21. Na4 {[%emt 0:00:08]} Bxb2 {[%emt 0:00:16]} 22. Nxb2 {
[%emt 0:00:02]} c5 {[%emt 0:00:19]} 23. f4 {[%emt 0:00:29]} Qb6 {[%emt 0:00:21]
} 24. Kh1 {[%emt 0:00:01]} Nf6 {[%emt 0:00:15]} 25. e5 {[%emt 0:00:09]} dxe5 {
[%emt 0:00:07]} 26. fxe5 {[%emt 0:00:01]} Ng4 {[%emt 0:00:06]} 27. h3 {[%emt 0:
00:04]} cxb4 {[%emt 0:00:04]} 28. axb4 {[%emt 0:00:02]} Nf2+ {[%emt 0:00:06]}
29. Kh2 {[%emt 0:00:01]} Kg7 {[%emt 0:00:06]} 30. Re2 {[%emt 0:00:01]} Ng4+ {
[%emt 0:00:08]} 31. hxg4 {[%emt 0:00:01]} hxg4 {[%emt 0:00:00]} 32. c5 {
[%emt 0:00:02]} Qc7 {[%emt 0:00:04]} 33. Qd6 {[%emt 0:00:01]} Qd8 {[%emt 0:00:
02]} 34. Kg1 {[%emt 0:00:01]} Qe8 {[%emt 0:00:03]} 35. Nd4 {[%emt 0:00:02]}
Nxd4 36. Qxd4 {[%emt 0:00:02]} Bb5 {[%emt 0:00:04]} 37. Re3 {[%emt 0:00:08]}
Rd8 {[%emt 0:00:01]} 38. Qf4 {[%emt 0:00:01]} Qd7 {[%emt 0:00:02]} 39. Nc4 {
[%emt 0:00:03]} Bxc4 {[%emt 0:00:02]} 40. Qxc4 {[%emt 0:00:03]} Qd2 {[%emt 0:
00:01]} 41. Rce1 {[%emt 0:00:01]} Rd4 {[%emt 0:00:02]} 42. Qe2 {[%emt 0:00:03]}
Qxb4 {[%emt 0:00:02]} 43. e6 {[%emt 0:00:00]} f5 {[%emt 0:00:01]} 44. Re5 {
[%emt 0:00:07]} Rd2 {[%emt 0:00:03]} 45. Qe3 {[%emt 0:00:02]} Qb2 {[%emt 0:00:
02]} 46. Bf1 {[%emt 0:00:05]} Rd8 {[%emt 0:00:09]} 47. Qg5 {[%emt 0:00:06]}
Qd4+ {[%emt 0:00:05]} 48. Kg2 {[%emt 0:00:01]} Qd2+ {[%emt 0:00:02]} 49. Qxd2 {
[%emt 0:00:01]} Rxd2+ 50. R1e2 {[%emt 0:00:00]} Rxe2+ {[%emt 0:00:02]} 51. Rxe2
{[%emt 0:00:01]} Kf6 {[%emt 0:00:00]} 52. Rb2 {[%emt 0:00:02]} Kxe6 {[%emt 0:
00:05]} 53. Bc4+ {[%emt 0:00:03]} Kf6 {[%emt 0:00:01]} 54. Kf2 {[%emt 0:00:03]}
Rc7 {[%emt 0:00:02]} 55. Be2 {[%emt 0:00:03]} Rxc5 56. Rxb7 {[%emt 0:00:00]} a5
{[%emt 0:00:03]} 57. Ra7 {[%emt 0:00:01]} Ke5 {[%emt 0:00:04]} 58. Re7+ {
[%emt 0:00:02]} Kf6 {[%emt 0:00:01]} 59. Ra7 {[%emt 0:00:01]} Ke5 {[%emt 0:00:
01]} 60. Re7+ {[%emt 0:00:01]} Kf6 {[%emt 0:00:04]} 61. Ra7 {[%emt 0:00:01]}
Kg5 {[%emt 0:00:00]} 62. Ke3 {[%emt 0:00:07]} Rc3+ {[%emt 0:00:00]} 63. Kf2 {
[%emt 0:00:01]} Ra3 {[%emt 0:00:01]} 64. Ra6 {[%emt 0:00:03]} a4 {[%emt 0:00:
02]} 65. Bb5 {[%emt 0:00:01]} Rf3+ {[%emt 0:00:01]} 66. Kg2 {[%emt 0:00:01]} a3
{[%emt 0:00:01]} 67. Be8 {[%emt 0:00:01]} Re3 {[%emt 0:00:03]} 68. Rxg6+ {
[%emt 0:00:01]} Kh5 {[%emt 0:00:01]} 69. Re6+ {[%emt 0:00:01]} 1-0

[Event "GER-ch Blitz 2019"]
[Site "Magdeburg"]
[Date "2019.05.25"]
[Round "6.8"]
[White "Koch, Thomas"]
[Black "Zuyev, Igor"]
[Result "1/2-1/2"]
[ECO "E16"]
[WhiteElo "2474"]
[BlackElo "2447"]
[Annotator "ChessBase"]
[PlyCount "85"]
[EventDate "2019.05.25"]
[EventType "tourn"]
[EventCountry "GER"]
[Tiebreak "Number of wins+Number of black wins"]
[SourceTitle "playchess.com"]
[Source "ChessBase"]
[SourceQuality "1"]
[TimeControl "180+2"]

1. d4 {[%emt 0:00:00]} Nf6 {[%emt 0:00:00]} 2. c4 {[%emt 0:00:00]} e6 {[%emt 0:
00:00]} 3. Nf3 {[%emt 0:00:01]} Bb4+ {[%emt 0:00:00]} 4. Bd2 {[%emt 0:00:00]}
Qe7 {[%emt 0:00:02]} 5. g3 {[%emt 0:00:01]} Nc6 {[%emt 0:00:12]} 6. Bg2 {
[%emt 0:00:01]} Bxd2+ {[%emt 0:00:06]} 7. Nbxd2 {[%emt 0:00:02]} O-O {[%emt 0:
00:03]} 8. O-O {[%emt 0:00:01]} d6 {[%emt 0:00:03]} 9. e4 {[%emt 0:00:01]} e5 {
[%emt 0:00:04]} 10. d5 {[%emt 0:00:02]} Nb8 {[%emt 0:00:04]} 11. Ne1 {[%emt 0:
00:01]} a5 {[%emt 0:00:05]} 12. Nd3 {[%emt 0:00:10]} Na6 {[%emt 0:00:05]} 13.
a3 {[%emt 0:00:05]} Bg4 {[%emt 0:00:06]} 14. f3 {[%emt 0:00:04]} Bd7 {[%emt 0:
00:02]} 15. b3 {[%emt 0:00:12]} c6 {[%emt 0:00:05]} 16. dxc6 {[%emt 0:00:06]}
bxc6 {[%emt 0:00:04]} 17. Kh1 {[%emt 0:00:05]} c5 {[%emt 0:00:05]} 18. f4 {
[%emt 0:00:12]} Rfd8 {[%emt 0:00:05]} 19. Rb1 {[%emt 0:00:33]} Nc7 {[%emt 0:00:
05]} 20. Qe2 {[%emt 0:00:18]} Bg4 {[%emt 0:00:06]} 21. Qe3 {[%emt 0:00:02]} Ne6
{[%emt 0:00:04]} 22. fxe5 {[%emt 0:00:13]} dxe5 {[%emt 0:00:06]} 23. Nxe5 {
[%emt 0:00:01]} Qd6 {[%emt 0:00:06]} 24. Ndf3 {[%emt 0:00:04]} Bxf3 {[%emt 0:
00:08]} 25. Nxf3 {[%emt 0:00:02]} Ng4 {[%emt 0:00:08]} 26. Qc3 {[%emt 0:00:13]}
Nd4 {[%emt 0:00:05]} 27. Nxd4 {[%emt 0:00:27]} cxd4 {[%emt 0:00:05]} 28. Qf3 {
[%emt 0:00:03]} Ne5 {[%emt 0:00:05]} 29. Qf4 {[%emt 0:00:03]} f6 {[%emt 0:00:
04]} 30. b4 {[%emt 0:00:02]} axb4 {[%emt 0:00:04]} 31. axb4 {[%emt 0:00:01]}
Qe7 {[%emt 0:00:05]} 32. c5 {[%emt 0:00:04]} Ra2 {[%emt 0:00:05]} 33. Qf5 {
[%emt 0:00:19]} Rc2 {[%emt 0:00:05]} 34. Bh3 {[%emt 0:00:04]} Qb7 {[%emt 0:00:
06]} 35. Qe6+ {[%emt 0:00:07]} Kh8 {[%emt 0:00:04]} 36. Bg2 {[%emt 0:00:09]}
Qb5 {[%emt 0:00:04]} 37. Rxf6 {[%emt 0:00:03]} Qe2 {[%emt 0:00:18]} 38. Rg1 {
[%emt 0:00:01]} Ng4 {[%emt 0:00:07]} 39. Qe7 {[%emt 0:00:04]} Rg8 {[%emt 0:00:
05]} 40. Rf4 {[%emt 0:00:06]} Nf2+ {[%emt 0:00:06]} 41. Rxf2 {[%emt 0:00:01]}
Qxf2 {[%emt 0:00:01]} 42. Qd7 {[%emt 0:00:03]} Re2 {[%emt 0:00:07]} 43. Qf5 {
[%emt 0:00:03]} 1/2-1/2

[Event "GER-ch Blitz 2019"]
[Site "Magdeburg"]
[Date "2019.05.25"]
[Round "6.9"]
[White "Frischmann, Rick"]
[Black "Wichmann, Cliff"]
[Result "0-1"]
[ECO "C05"]
[WhiteElo "2320"]
[BlackElo "2280"]
[Annotator "NA"]
[PlyCount "109"]
[EventDate "2019.05.25"]
[EventType "tourn"]
[EventCountry "GER"]
[Tiebreak "Number of wins+Number of black wins"]
[SourceTitle "playchess.com"]
[Source "ChessBase"]
[SourceQuality "1"]
[TimeControl "180+2"]

1. e4 {[%emt 0:00:00]} e6 {[%emt 0:00:00]} 2. d4 {[%emt 0:00:01]} d5 {[%emt 0:
00:00]} 3. Nd2 {[%emt 0:00:01]} Nf6 {[%emt 0:00:05]} 4. e5 {[%emt 0:00:00]}
Nfd7 {[%emt 0:00:01]} 5. f4 {[%emt 0:00:01]} c5 {[%emt 0:00:00]} 6. c3 {
[%emt 0:00:01]} Nc6 {[%emt 0:00:01]} 7. Ndf3 {[%emt 0:00:00]} Qb6 {[%emt 0:00:
01]} 8. h4 {[%emt 0:00:01]} Be7 {[%emt 0:00:06]} 9. a3 {[%emt 0:00:01]} cxd4 {
[%emt 0:00:01]} 10. cxd4 {[%emt 0:00:01]} Na5 {[%emt 0:00:01]} 11. b4 {[%emt 0:
00:31]} Nc4 {[%emt 0:00:02]} 12. Bd3 {[%emt 0:00:02]} a5 {[%emt 0:00:06]} 13.
b5 {[%emt 0:00:00]} Qxb5 {[%emt 0:00:07]} 14. Ne2 {[%emt 0:00:01]} Qa6 {
[%emt 0:00:25]} 15. O-O {[%emt 0:00:06]} b5 {[%emt 0:00:01]} 16. f5 {[%emt 0:
00:03]} Qb6 {[%emt 0:00:24]} 17. Kh1 {[%emt 0:00:06]} Nf8 {[%emt 0:00:07]} 18.
Nf4 {[%emt 0:00:26]} Qd8 {[%emt 0:00:38]} 19. Nh5 {[%emt 0:01:05]} Bxh4 {
[%emt 0:00:03]} 20. Nxg7+ {[%emt 0:00:02]} Kd7 {[%emt 0:00:01]} 21. Rb1 {
[%emt 0:00:20]} Kc6 {[%emt 0:00:05]} 22. a4 {[%emt 0:00:03]} b4 {[%emt 0:00:06]
} 23. Nd2 {[%emt 0:00:08]} Ne3 {[%emt 0:00:15]} 24. Qh5 {[%emt 0:00:19]} Nxf1 {
[%emt 0:00:07]} 25. Nxf1 {[%emt 0:00:01]} Ra7 {[%emt 0:00:12]} 26. f6 {[%emt 0:
00:04]} Be1 {[%emt 0:00:03]} 27. Bb2 {[%emt 0:00:11]} Bf2 {[%emt 0:00:31]} 28.
Qe2 {[%emt 0:00:05]} Bh4 {[%emt 0:00:02]} 29. Qc2+ {[%emt 0:00:05]} Kb7 {
[%emt 0:00:02]} 30. Rc1 {[%emt 0:00:02]} Kb8 {[%emt 0:00:02]} 31. Qc6 {[%emt 0:
00:06]} Bg5 {[%emt 0:00:08]} 32. Rc5 {[%emt 0:00:02]} Bb7 33. Qb5 Nd7 {[%emt 0:
00:05]} 34. Rc1 {[%emt 0:00:05]} Nxf6 {[%emt 0:00:02]} 35. exf6 Bxf6 {[%emt 0:
00:00]} 36. Nh5 {[%emt 0:00:04]} Be7 {[%emt 0:00:02]} 37. Rc2 {[%emt 0:00:01]}
Qe8 {[%emt 0:00:01]} 38. Bc1 {[%emt 0:00:01]} Qxb5 {[%emt 0:00:01]} 39. Bxb5 {
[%emt 0:00:01]} Rc8 {[%emt 0:00:01]} 40. Bf4+ {[%emt 0:00:01]} Ka8 41. Rf2 f5 {
[%emt 0:00:03]} 42. Ng7 {[%emt 0:00:01]} Bc6 {[%emt 0:00:03]} 43. Nxe6 {
[%emt 0:00:02]} Bxb5 {[%emt 0:00:01]} 44. axb5 {[%emt 0:00:00]} b3 {[%emt 0:00:
00]} 45. Nc5 {[%emt 0:00:05]} Bxc5 46. dxc5 {[%emt 0:00:00]} Rxc5 47. Be3 Rc2 {
[%emt 0:00:05]} 48. Bxa7 {[%emt 0:00:03]} Kxa7 {[%emt 0:00:01]} 49. Rf3 {
[%emt 0:00:10]} a4 {[%emt 0:00:01]} 50. Ne3 {[%emt 0:00:01]} b2 {[%emt 0:00:02]
} 51. Nxc2 {[%emt 0:00:07]} b1=Q+ {[%emt 0:00:01]} 52. Kh2 {[%emt 0:00:01]}
Qxc2 {[%emt 0:00:01]} 53. Rh3 {[%emt 0:00:00]} Kb6 {[%emt 0:00:02]} 54. Rxh7 {
[%emt 0:00:01]} a3 {[%emt 0:00:01]} 55. Rh6+ {[%emt 0:00:02]} 0-1

[Event "GER-ch Blitz 2019"]
[Site "Magdeburg"]
[Date "2019.05.25"]
[Round "6.10"]
[White "Feuerstack, Aljoscha"]
[Black "Hirneise, Jens"]
[Result "1-0"]
[ECO "B22"]
[WhiteElo "2441"]
[BlackElo "2375"]
[Annotator "NA"]
[PlyCount "67"]
[EventDate "2019.05.25"]
[EventType "tourn"]
[EventCountry "GER"]
[Tiebreak "Number of wins+Number of black wins"]
[SourceTitle "playchess.com"]
[Source "ChessBase"]
[SourceQuality "1"]
[TimeControl "180+2"]

1. e4 {[%emt 0:00:00]} c5 {[%emt 0:00:00]} 2. c3 {[%emt 0:00:00]} Nf6 {[%emt 0:
00:00]} 3. e5 {[%emt 0:00:01]} Nd5 {[%emt 0:00:00]} 4. Nf3 {[%emt 0:00:00]} Nc6
{[%emt 0:00:01]} 5. Bc4 {[%emt 0:00:01]} Nb6 {[%emt 0:00:01]} 6. Bb3 {[%emt 0:
00:01]} d5 {[%emt 0:00:01]} 7. exd6 {[%emt 0:00:01]} Qxd6 {[%emt 0:00:01]} 8.
O-O {[%emt 0:00:02]} Be6 {[%emt 0:00:12]} 9. Bxe6 {[%emt 0:00:04]} Qxe6 {
[%emt 0:00:03]} 10. a4 {[%emt 0:00:01]} Qd7 {[%emt 0:00:21]} 11. a5 {[%emt 0:
00:02]} Nc8 {[%emt 0:00:07]} 12. a6 {[%emt 0:00:05]} b6 {[%emt 0:00:07]} 13.
Na3 {[%emt 0:00:03]} e6 {[%emt 0:00:06]} 14. Qa4 {[%emt 0:00:51]} Be7 {[%emt 0:
00:15]} 15. d4 {[%emt 0:00:02]} O-O {[%emt 0:00:38]} 16. Rd1 {[%emt 0:00:22]}
Rd8 {[%emt 0:00:12]} 17. Nb5 {[%emt 0:00:28]} cxd4 {[%emt 0:00:33]} 18. Bf4 {
[%emt 0:00:07]} Nd6 {[%emt 0:00:15]} 19. Bxd6 {[%emt 0:00:26]} Bxd6 {[%emt 0:
00:02]} 20. Nfxd4 {[%emt 0:00:01]} Be7 {[%emt 0:00:25]} 21. h3 {[%emt 0:00:30]}
g6 {[%emt 0:00:08]} 22. Nxc6 {[%emt 0:00:04]} Qxc6 {[%emt 0:00:02]} 23. Rxd8+ {
[%emt 0:00:06]} Bxd8 {[%emt 0:00:05]} 24. Nd4 {[%emt 0:00:05]} Qd5 {[%emt 0:00:
06]} 25. Qc6 {[%emt 0:00:02]} Qxc6 {[%emt 0:00:05]} 26. Nxc6 {[%emt 0:00:01]}
Bf6 {[%emt 0:00:02]} 27. Rd1 {[%emt 0:00:01]} Rc8 {[%emt 0:00:03]} 28. Nxa7 {
[%emt 0:00:02]} Ra8 {[%emt 0:00:00]} 29. Rd7 {[%emt 0:00:00]} Kf8 {[%emt 0:00:
02]} 30. Rb7 {[%emt 0:00:04]} Ke8 {[%emt 0:00:04]} 31. b4 {[%emt 0:00:00]} Bxc3
{[%emt 0:00:02]} 32. b5 {[%emt 0:00:01]} Bd4 {[%emt 0:00:02]} 33. Nc6 {[%emt 0:
00:01]} Bc5 {[%emt 0:00:01]} 34. a7 {[%emt 0:00:01]} 1-0

[Event "GER-ch Blitz 2019"]
[Site "Magdeburg"]
[Date "2019.05.25"]
[Round "6.11"]
[White "Stern, Rene"]
[Black "Voege, Tobias"]
[Result "0-1"]
[ECO "B39"]
[WhiteElo "2538"]
[BlackElo "2294"]
[Annotator "ChessBase"]
[PlyCount "44"]
[EventDate "2019.05.25"]
[EventType "tourn"]
[EventCountry "GER"]
[Tiebreak "Number of wins+Number of black wins"]
[SourceTitle "playchess.com"]
[Source "ChessBase"]
[SourceQuality "1"]
[TimeControl "180+2"]

1. Nf3 {[%emt 0:00:00]} c5 {[%emt 0:00:00]} 2. c4 {[%emt 0:00:00]} g6 {[%emt 0:
00:00]} 3. e4 {[%emt 0:00:05]} Bg7 {[%emt 0:00:00]} 4. d4 {[%emt 0:00:01]} cxd4
{[%emt 0:00:01]} 5. Nxd4 {[%emt 0:00:01]} Nc6 {[%emt 0:00:01]} 6. Be3 {[%emt 0:
00:01]} Nf6 {[%emt 0:00:01]} 7. Nc3 {[%emt 0:00:01]} Ng4 {[%emt 0:00:04]} 8.
Qxg4 {[%emt 0:00:02]} Nxd4 {[%emt 0:00:02]} 9. Qd1 {[%emt 0:00:03]} e5 {
[%emt 0:00:01]} 10. Ne2 {[%emt 0:00:29]} O-O {[%emt 0:00:15]} 11. a3 {[%emt 0:
00:45]} Qh4 {[%emt 0:00:58]} 12. Qd3 {[%emt 0:00:33]} f5 {[%emt 0:01:08]} 13.
exf5 {[%emt 0:00:03]} d5 {[%emt 0:00:17]} 14. Bxd4 {[%emt 0:00:16]} Bxf5 {
[%emt 0:00:18]} 15. Qg3 {[%emt 0:00:06]} Qxg3 {[%emt 0:00:02]} 16. Nxg3 {
[%emt 0:00:02]} exd4 {[%emt 0:00:00]} 17. Nxf5 {[%emt 0:00:07]} Rae8+ {[%emt 0:
00:02]} 18. Kd1 {[%emt 0:00:16]} Rxf5 {[%emt 0:00:02]} 19. f3 {[%emt 0:00:01]}
Rfe5 {[%emt 0:00:05]} 20. Bd3 {[%emt 0:00:08]} Re3 {[%emt 0:00:05]} 21. Kc2 {
[%emt 0:00:03]} Rc8 {[%emt 0:00:02]} 22. b3 {[%emt 0:00:01]} b5 {[%emt 0:00:08]
} 0-1

[Event "GER-ch Blitz 2019"]
[Site "Magdeburg"]
[Date "2019.05.25"]
[Round "6.12"]
[White "Braeuning, Rudolf Wilhelm"]
[Black "Schulz, Karsten"]
[Result "1/2-1/2"]
[ECO "B06"]
[WhiteElo "2285"]
[BlackElo "2227"]
[Annotator "NA"]
[PlyCount "71"]
[EventDate "2019.05.25"]
[EventType "tourn"]
[EventCountry "GER"]
[Tiebreak "Number of wins+Number of black wins"]
[SourceTitle "playchess.com"]
[Source "ChessBase"]
[SourceQuality "1"]
[TimeControl "180+2"]

1. e4 {[%emt 0:00:00]} g6 {[%emt 0:00:00]} 2. d4 {[%emt 0:00:00]} Bg7 {[%emt 0:
00:00]} 3. Nc3 {[%emt 0:00:01]} d6 {[%emt 0:00:01]} 4. Be3 {[%emt 0:00:02]} a6
{[%emt 0:00:01]} 5. f4 {[%emt 0:00:02]} b5 {[%emt 0:00:04]} 6. Bd3 {[%emt 0:00:
01]} Nd7 {[%emt 0:00:02]} 7. Nf3 {[%emt 0:00:01]} c5 {[%emt 0:00:04]} 8. dxc5 {
[%emt 0:00:11]} Nxc5 {[%emt 0:00:12]} 9. Bxc5 {[%emt 0:00:05]} Bxc3+ {[%emt 0:
00:10]} 10. bxc3 {[%emt 0:00:00]} dxc5 {[%emt 0:00:01]} 11. e5 {[%emt 0:00:07]}
Bb7 {[%emt 0:00:07]} 12. Qe2 {[%emt 0:00:21]} Qc7 {[%emt 0:00:05]} 13. O-O {
[%emt 0:00:08]} Nh6 {[%emt 0:00:04]} 14. Ng5 {[%emt 0:00:38]} e6 {[%emt 0:00:
21]} 15. Be4 {[%emt 0:00:21]} Nf5 {[%emt 0:00:10]} 16. Bxb7 {[%emt 0:00:19]}
Qxb7 {[%emt 0:00:01]} 17. Ne4 {[%emt 0:00:02]} O-O {[%emt 0:00:17]} 18. Nf6+ {
[%emt 0:00:05]} Kg7 {[%emt 0:00:03]} 19. g4 {[%emt 0:00:15]} Ne7 {[%emt 0:00:
08]} 20. Rad1 {[%emt 0:00:10]} Rad8 {[%emt 0:00:04]} 21. c4 {[%emt 0:00:14]}
bxc4 {[%emt 0:00:13]} 22. Qxc4 {[%emt 0:00:01]} Nd5 {[%emt 0:00:04]} 23. Nxd5 {
[%emt 0:00:05]} Rxd5 {[%emt 0:00:01]} 24. Rxd5 {[%emt 0:00:02]} Qxd5 {[%emt 0:
00:01]} 25. Qxd5 {[%emt 0:00:03]} exd5 {[%emt 0:00:01]} 26. Rb1 {[%emt 0:00:07]
} Re8 {[%emt 0:00:17]} 27. Kf2 {[%emt 0:00:03]} g5 {[%emt 0:00:03]} 28. Kf3 {
[%emt 0:00:04]} gxf4 {[%emt 0:00:02]} 29. Kxf4 {[%emt 0:00:00]} Re6 {[%emt 0:
00:06]} 30. h4 {[%emt 0:00:06]} h6 {[%emt 0:00:05]} 31. g5 {[%emt 0:00:08]}
hxg5+ {[%emt 0:00:01]} 32. hxg5 {[%emt 0:00:01]} Rc6 {[%emt 0:00:17]} 33. Rd1 {
[%emt 0:00:07]} d4 {[%emt 0:00:04]} 34. Rb1 {[%emt 0:00:04]} c4 {[%emt 0:00:11]
} 35. Ke4 {[%emt 0:00:02]} d3 {[%emt 0:00:06]} 36. cxd3 1/2-1/2

[Event "GER-ch Blitz 2019"]
[Site "Magdeburg"]
[Date "2019.05.25"]
[Round "6.13"]
[White "Carow, Johannes"]
[Black "Heistermann, Till"]
[Result "1/2-1/2"]
[ECO "B38"]
[WhiteElo "2445"]
[BlackElo "2181"]
[Annotator "NA"]
[PlyCount "71"]
[EventDate "2019.05.25"]
[EventType "tourn"]
[EventCountry "GER"]
[Tiebreak "Number of wins+Number of black wins"]
[SourceTitle "playchess.com"]
[Source "ChessBase"]
[SourceQuality "1"]
[TimeControl "180+2"]

1. Nf3 {[%emt 0:00:00]} c5 {[%emt 0:00:00]} 2. c4 {[%emt 0:00:03]} g6 {[%emt 0:
00:00]} 3. d4 {[%emt 0:00:01]} cxd4 {[%emt 0:00:00]} 4. Nxd4 {[%emt 0:00:01]}
Bg7 {[%emt 0:00:01]} 5. e4 {[%emt 0:00:01]} Nc6 {[%emt 0:00:01]} 6. Be3 {
[%emt 0:00:01]} d6 {[%emt 0:00:02]} 7. Nc3 {[%emt 0:00:02]} Nf6 {[%emt 0:00:01]
} 8. Be2 {[%emt 0:00:02]} Nxd4 {[%emt 0:00:01]} 9. Bxd4 {[%emt 0:00:02]} O-O {
[%emt 0:00:01]} 10. O-O Bd7 11. Qc2 {[%emt 0:00:13]} Bc6 {[%emt 0:00:03]} 12.
Rad1 {[%emt 0:00:07]} Nd7 {[%emt 0:00:12]} 13. Be3 {[%emt 0:00:02]} a5 {
[%emt 0:00:07]} 14. f4 {[%emt 0:00:09]} Qc7 {[%emt 0:00:02]} 15. Bf3 {[%emt 0:
00:12]} Rfc8 {[%emt 0:00:02]} 16. Qd2 {[%emt 0:00:12]} a4 {[%emt 0:00:12]} 17.
Bg4 {[%emt 0:00:56]} Rd8 {[%emt 0:00:07]} 18. Nd5 {[%emt 0:00:16]} Bxd5 {
[%emt 0:00:01]} 19. cxd5 {[%emt 0:00:01]} Qa5 {[%emt 0:00:26]} 20. Qe2 {
[%emt 0:00:34]} Nc5 {[%emt 0:00:19]} 21. Bxc5 {[%emt 0:00:05]} Qxc5+ {[%emt 0:
00:02]} 22. Kh1 {[%emt 0:00:01]} Qb4 {[%emt 0:00:06]} 23. e5 {[%emt 0:00:07]}
Ra5 {[%emt 0:00:31]} 24. Rf2 {[%emt 0:00:11]} Rc5 {[%emt 0:00:06]} 25. h3 {
[%emt 0:00:17]} Rc4 {[%emt 0:00:04]} 26. a3 {[%emt 0:00:03]} Qc5 {[%emt 0:00:
08]} 27. exd6 {[%emt 0:00:05]} exd6 {[%emt 0:00:02]} 28. Qe7 {[%emt 0:00:02]}
Qc7 {[%emt 0:00:02]} 29. Qxc7 {[%emt 0:00:03]} Rxc7 {[%emt 0:00:01]} 30. Re1 {
[%emt 0:00:02]} h5 {[%emt 0:00:17]} 31. Bd1 {[%emt 0:00:01]} b5 {[%emt 0:00:01]
} 32. Rd2 {[%emt 0:00:03]} Kf8 {[%emt 0:00:03]} 33. Kg1 {[%emt 0:00:01]} Rc5 {
[%emt 0:00:01]} 34. Kf1 {[%emt 0:00:01]} Rdc8 {[%emt 0:00:03]} 35. g4 {[%emt 0:
00:02]} hxg4 {[%emt 0:00:01]} 36. hxg4 {[%emt 0:00:01]} 1/2-1/2